fUSD/lending_fUSD_20250215
["ID","MTS","AMOUNT","RATE_DAILY","PERIOD"]
[353170438,1739622649995,-405.82,0.00011281,2]
[353170439,1739622650005,-500.0,0.00011281,2]
[353170440,1739622650015,-1033.08,0.00011281,2]
[353170441,1739622650025,-500.0,0.00011281,2]
[353170442,1739622650034,-1201.24,0.00011281,2]
[353170443,1739622650043,-500.0,0.00011281,2]
[353170444,1739622650053,-618.91,0.00011281,2]
[353170445,1739622650063,-445.51,0.00011281,2]
[353170446,1739622650072,-553.12,0.00011281,2]
[353170447,1739622650081,-500.0,0.00011281,2]
[353170448,1739622650090,-500.0,0.00011281,2]
[353170449,1739622650099,-500.0,0.00011281,2]
[353170450,1739622650109,-536.54,0.00011281,2]
[353170451,1739622650118,-500.0,0.00011281,2]
[353170452,1739622650128,-581.25,0.00011281,2]
[353170453,1739622650137,-500.0,0.00011281,2]
[353170454,1739622650147,-500.0,0.00011281,2]
[353170455,1739622650158,-455.62,0.00011281,2]
[353170456,1739622650172,-500.0,0.00011281,2]
[353170457,1739622650182,-500.0,0.00011281,2]
[353170458,1739622650191,-500.0,0.00011281,2]
[353170459,1739622650201,-761.01,0.00011281,2]
[353170460,1739622650210,-531.06,0.00011281,2]
[353170461,1739622650220,-326.29,0.00011281,2]
[353170462,1739622650229,-500.0,0.00011281,2]
[353170463,1739622650240,-500.0,0.00011281,2]
[353170464,1739622650249,-978.15,0.00011281,2]
[353170465,1739622650259,-500.0,0.00011281,2]
[353170466,1739622650268,-310.59,0.00011281,2]
[353170467,1739622650277,-500.0,0.00011281,2]
[353170468,1739622650289,-718.8,0.00011281,2]
[353170469,1739622650299,-500.0,0.00011281,2]
[353170470,1739622650309,-500.0,0.00011281,2]
[353170471,1739622650318,-763.17,0.00011281,2]
[353170472,1739622650328,-1207.4,0.00011281,2]
[353170473,1739622650338,-500.0,0.00011281,2]
[353170474,1739622650350,-601.17,0.00011281,2]
[353170475,1739622650360,-500.0,0.00011281,2]
[353170476,1739622650370,-500.0,0.00011281,2]
[353170477,1739622650379,-3487.11,0.00011281,2]
[353170478,1739622650389,-500.0,0.00011281,2]
[353170479,1739622650400,-500.0,0.00011281,2]
[353170480,1739622650410,-834.46,0.00011281,2]
[353170481,1739622650420,-500.0,0.00011282,2]
[353170482,1739622650432,-500.0,0.00011282,2]
[353170483,1739622650441,-500.0,0.00011282,2]
[353170484,1739622650450,-500.0,0.00011282,2]
[353170485,1739622650459,-500.0,0.00011282,2]
[353170486,1739622650468,-500.0,0.00011282,2]
[353170487,1739622650477,-500.0,0.00011282,2]
[353170488,1739622650488,-500.0,0.00011282,2]
[353170489,1739622650497,-500.0,0.00011282,2]
[353170490,1739622650507,-509.33925984,0.00011282,2]
[353170491,1739622650516,-503.210975,0.00011282,2]
[353170492,1739622650525,-500.0,0.00011282,2]
[353170493,1739622650535,-500.0,0.00011282,2]
[353170494,1739622650543,-500.0,0.00011282,2]
[353170495,1739622650552,-500.0,0.00011282,2]
[353170496,1739622650561,-618.58,0.00011282,2]
[353170497,1739622650570,-535.46,0.00011282,2]
[353170498,1739622650579,-500.0,0.00011282,2]
[353170499,1739622650588,-500.0,0.00011282,2]
[353170500,1739622650597,-500.18623637,0.00011282,2]
[353170501,1739622650607,-400.13508739,0.00011282,2]
[353170502,1739622650615,-80.01587844,0.00011282,2]
[353170503,1739622650648,-36.86115718,0.00011282,2]
[353170504,1739622650660,-383.12296438,0.00011282,2]
[353170505,1739622650669,-500.0,0.00011282,2]
[353170506,1739622650678,-500.0,0.00011282,2]
[353170507,1739622650688,-500.0,0.00011282,2]
[353170508,1739622650698,-424.24743512,0.00011282,2]
[353170509,1739622650707,-292.0745955,0.00011282,2]
[353170510,1739622650724,-207.9254045,0.00011282,2]
[353170511,1739622650735,-501.04237704,0.00011282,2]
[353170512,1739622650745,-500.0,0.00011282,2]
[353170513,1739622650754,-527.58053479,0.00011282,2]
[353170514,1739622650763,-500.0,0.00011282,2]
[353170515,1739622650772,-500.0,0.00011282,2]
[353170516,1739622650782,-500.0,0.00011282,2]
[353170517,1739622650791,-500.0,0.00011282,2]
[353170518,1739622650800,-115.33236009,0.00011282,2]
[353170519,1739622651127,-504.5641805,0.00011199,2]
[353170520,1739622651137,-384.66763991,0.00011282,2]
[353170521,1739622651147,-500.0,0.00011282,2]
[353170522,1739622651158,-500.0,0.00011282,2]
[353170523,1739622651167,-500.0,0.00011282,2]
[353170524,1739622651177,-500.0,0.00011282,2]
[353170525,1739622651187,-500.0,0.00011282,2]
[353170526,1739622651197,-500.0,0.00011282,2]
[353170527,1739622651207,-500.0,0.00011282,2]
[353170528,1739622651216,-500.0,0.00011282,2]
[353170529,1739622651226,-44.46817959,0.00011282,2]
[353170530,1739622651246,-455.53182041,0.00011282,2]
[353170531,1739622651256,-503.55,0.00011282,2]
[353170532,1739622651266,-500.0,0.00011282,2]
[353170533,1739622651275,-500.0,0.00011282,2]
[353170534,1739622651284,-501.93235363,0.00011282,2]
[353170535,1739622651294,-504.92246659,0.00011282,2]
[353170536,1739622651304,-500.0,0.00011282,2]
[353170537,1739622651313,-500.0,0.00011282,2]
[353170538,1739622651322,-500.0,0.00011282,2]
[353170539,1739622651332,-500.0,0.00011282,2]
[353170540,1739622651342,-500.0,0.00011282,2]
[353170541,1739622651356,-500.0,0.00011282,2]
[353170542,1739622651374,-500.0,0.00011282,2]
[353170543,1739622651384,-500.0,0.00011282,2]
[353170544,1739622651394,-504.42717946,0.00011282,2]
[353170545,1739622651404,-500.0,0.00011282,2]
[353170546,1739622651413,-582.44,0.00011282,2]
[353170547,1739622651424,-500.0,0.00011282,2]
[353170548,1739622651433,-500.0,0.00011282,2]
[353170549,1739622651444,-500.0,0.00011282,2]
[353170550,1739622651454,-500.0,0.00011282,2]
[353170551,1739622651464,-500.0,0.00011282,2]
[353170552,1739622651474,-615.77,0.00011282,2]
[353170553,1739622651485,-488.6398711,0.00011282,2]
[353170554,1739622651494,-500.0,0.00011282,2]
[353170555,1739622651503,-622.64,0.00011282,2]
[353170556,1739622651513,-500.0,0.00011282,2]
[353170557,1739622651523,-500.0,0.00011282,2]
[353170558,1739622651535,-500.0,0.00011282,2]
[353170559,1739622651557,-645.8498,0.00011282,2]
[353170560,1739622651575,-504.52476255,0.00011282,2]
[353170561,1739622651584,-500.0,0.00011282,2]
[353170562,1739622651593,-500.0,0.00011282,2]
[353170563,1739622651603,-500.0,0.00011282,2]
[353170564,1739622651612,-504.66020188,0.00011282,2]
[353170565,1739622651622,-500.0,0.00011282,2]
[353170566,1739622651632,-500.0,0.00011282,2]
[353170567,1739622651642,-500.0,0.00011282,2]
[353170568,1739622651652,-500.0,0.00011282,2]
[353170569,1739622651662,-500.0,0.00011282,2]
[353170570,1739622651672,-539.11,0.00011282,2]
[353170571,1739622651683,-621.48,0.00011282,2]
[353170572,1739622651693,-500.0,0.00011282,2]
[353170573,1739622651703,-500.0,0.00011282,2]
[353170574,1739622651712,-500.0,0.00011282,2]
[353170575,1739622651721,-500.0,0.00011282,2]
[353170576,1739622651730,-556.28,0.00011282,2]
[353170577,1739622651741,-586.72,0.00011282,2]
[353170578,1739622651751,-500.0,0.00011282,2]
[353170579,1739622651761,-500.0,0.00011282,2]
[353170580,1739622651769,-500.0,0.00011282,2]
[353170581,1739622651777,-500.0,0.00011282,2]
[353170582,1739622651785,-500.0,0.00011282,2]
[353170583,1739622651794,-500.0,0.00011282,2]
[353170584,1739622651804,-500.0,0.00011282,2]
[353170585,1739622651814,-500.0,0.00011282,2]
[353170586,1739622651824,-500.0,0.00011282,2]
[353170587,1739622651833,-500.0,0.00011282,2]
[353170588,1739622651843,-264.75346734,0.00011282,2]
[353170589,1739622651852,-599.12148802,0.00011282,2]
[353170590,1739622651862,-500.0,0.00011282,2]
[353170591,1739622651872,-500.0,0.00011282,2]
[353170592,1739622651881,-500.0,0.00011282,2]
[353170593,1739622651891,-500.0,0.00011282,2]
[353170594,1739622651901,-500.0,0.00011282,2]
[353170595,1739622651911,-500.0,0.00011282,2]
[353170596,1739622651921,-500.0,0.00011282,2]
[353170597,1739622651931,-507.93164863,0.00011282,2]
[353170598,1739622651941,-500.0,0.00011282,2]
[353170599,1739622651951,-500.0,0.00011282,2]
[353170600,1739622651960,-500.0,0.00011282,2]
[353170601,1739622651970,-500.0,0.00011282,2]
[353170602,1739622651980,-500.0,0.00011282,2]
[353170603,1739622651990,-500.0,0.00011282,2]
[353170604,1739622652000,-500.0,0.00011282,2]
[353170605,1739622652010,-500.0,0.00011282,2]
[353170606,1739622652019,-500.0,0.00011282,2]
[353170607,1739622652028,-24.26627039,0.00011282,2]
[353170608,1739622652042,-514.43372961,0.00011282,2]
[353170609,1739622652051,-500.0,0.00011282,2]
[353170610,1739622652061,-284.34485602,0.00011282,2]
[353170611,1739622652072,-215.65514398,0.00011282,2]
[353170612,1739622652082,-500.0,0.00011282,2]
[353170613,1739622652091,-500.0,0.00011282,2]
[353170614,1739622652101,-125.30128459,0.00011282,2]
[353170615,1739622652112,-309.415,0.00011282,2]
[353170616,1739622909564,400.6035,8.119e-05,2]
[353170617,1739622925014,301.0,0.0002,120]
[353170622,1739623159028,588.425,0.0002,120]
[353170623,1739623233223,2694.58538797,0.0002,120]
[353170625,1739623338153,1890.8891,8.699e-05,2]
[353170626,1739623427703,1080.9986,8.699e-05,2]
[353170627,1739623504338,501.0,0.0002,120]
[353170812,1739623832058,-262.014,8.836e-05,2]
[353170813,1739623832068,-528.1123,8.851e-05,2]
[353170814,1739623832077,-150.0,0.00010067,2]
[353170815,1739623832086,-390.7237,0.00010068,2]
[353170896,1739623839915,-488.84537412,0.00010068,2]
[353170897,1739623839990,-20.43092588,0.00010068,2]
[353170898,1739623840000,-900.0,0.00010068,2]
[353170899,1739623840010,-166.38,0.00010137,2]
[353170900,1739623840020,-1000.0,0.00010368,2]
[353170901,1739623840030,-218.73,0.00010687,2]
[353170902,1739623840040,-150.0,0.000107,2]
[353170903,1739623840049,-150.0,0.000107,2]
[353170904,1739623840059,-150.0,0.00011047,2]
[353170905,1739623840069,-150.0,0.00011047,2]
[353170906,1739623840081,-172.3328106,0.00011057,2]
[353170907,1739623840090,-500.0,0.00011164,2]
[353170908,1739623840100,-386.19615194,0.0001117,2]
[353170909,1739623840109,-5641.29057333,0.0001117,2]
[353170910,1739623840119,-500.0,0.00011198,2]
[353170911,1739623840128,-500.0,0.00011198,2]
[353170912,1739623840138,-382.70525934,0.00011198,2]
[353170913,1739623840147,-168.19,0.00011198,2]
[353170914,1739623840157,-500.0,0.00011198,2]
[353170915,1739623840166,-599.18,0.00011198,2]
[353170916,1739623840176,-158.88,0.00011198,2]
[353170917,1739623840186,-555.95,0.00011198,2]
[353170918,1739623840196,-251.73,0.00011198,2]
[353170919,1739623840205,-184.02,0.00011198,2]
[353170920,1739623840215,-350.24,0.00011198,2]
[353170921,1739623840225,-38.77083658,0.00011198,2]
[353170922,1739623840311,-355.19916342,0.00011198,2]
[353170923,1739623840321,-230.30803984,0.00011198,2]
[353170924,1739623840333,-269.69196016,0.00011198,2]
[353170925,1739623840343,-199.33,0.00011198,2]
[353170926,1739623840352,-523.69457922,0.00011198,2]
[353170927,1739623840362,-500.0,0.00011198,2]
[353170928,1739623840371,-624.86623327,0.00011198,2]
[353170929,1739623840380,-446.94676538,0.00011198,2]
[353170930,1739623840390,-586.3,0.00011198,2]
[353170931,1739623840399,-24.13025574,0.00011198,2]
[353170932,1739623840411,-475.86974426,0.00011198,2]
[353170933,1739623840421,-500.0,0.00011198,2]
[353170934,1739623840430,-521.87,0.00011198,2]
[353170935,1739623840440,-500.0,0.00011198,2]
[353170936,1739623840450,-500.0,0.00011198,2]
[353170937,1739623840459,-276.82938226,0.00011198,2]
[353170938,1739623840485,-223.17061774,0.00011198,2]
[353170939,1739623840494,-501.16947458,0.00011198,2]
[353170940,1739623840504,-138.89341403,0.00011198,2]
[353170946,1739623843107,-319.69781503,0.00011198,2]
[353170947,1739623843118,-42.57333599,0.00011198,2]
[353170948,1739623843128,-327.56304401,0.00011198,2]
[353170949,1739623843139,-204.10695599,0.00011198,2]
[353170950,1739623843149,-500.0,0.00011198,2]
[353170951,1739623843159,-501.47094092,0.00011198,2]
[353170952,1739623843168,-500.0,0.00011198,2]
[353170953,1739623843178,-500.0,0.00011198,2]
[353170954,1739623843187,-500.0,0.00011198,2]
[353170955,1739623843196,-500.0,0.00011198,2]
[353170956,1739623843205,-402.46,0.00011198,2]
[353170957,1739623843215,-324.54206668,0.00011198,2]
[353170958,1739623843226,-12.03793332,0.00011198,2]
[353170959,1739623843235,-500.0,0.00011198,2]
[353170960,1739623843244,-500.0,0.00011198,2]
[353170961,1739623843254,-500.0,0.00011198,2]
[353170962,1739623843263,-545.14,0.00011198,2]
[353170963,1739623843272,-500.0,0.00011198,2]
[353170964,1739623843281,-500.0,0.00011198,2]
[353170965,1739623843290,-500.0,0.00011198,2]
[353170966,1739623843300,-500.0,0.00011198,2]
[353170967,1739623843309,-500.0,0.00011198,2]
[353170968,1739623843318,-500.0,0.00011198,2]
[353170969,1739623843327,-500.0,0.00011198,2]
[353170970,1739623843340,-643.31,0.00011198,2]
[353170971,1739623843349,-547.86,0.00011198,2]
[353170972,1739623843359,-500.0,0.00011198,2]
[353170973,1739623843368,-500.0,0.00011198,2]
[353170974,1739623843377,-501.63490567,0.00011198,2]
[353170975,1739623843386,-500.0,0.00011198,2]
[353170976,1739623843395,-505.41386426,0.00011198,2]
[353170977,1739623843404,-538.33,0.00011198,2]
[353170978,1739623843413,-500.0,0.00011198,2]
[353170979,1739623843422,-595.61,0.00011198,2]
[353170980,1739623843431,-500.0,0.00011198,2]
[353170981,1739623843440,-500.0,0.00011198,2]
[353170982,1739623843448,-500.0,0.00011198,2]
[353170983,1739623843458,-500.0,0.00011198,2]
[353170984,1739623843467,-510.93522051,0.00011198,2]
[353170985,1739623843477,-500.0,0.00011198,2]
[353170986,1739623843486,-500.0,0.00011198,2]
[353170987,1739623843495,-500.0,0.00011198,2]
[353170988,1739623843504,-500.0,0.00011198,2]
[353170989,1739623843513,-501.13266839,0.00011198,2]
[353170990,1739623843523,-500.0,0.00011198,2]
[353170991,1739623843533,-536.56,0.00011198,2]
[353170992,1739623843542,-500.0,0.00011198,2]
[353170993,1739623843552,-500.0,0.00011198,2]
[353170994,1739623843562,-500.0,0.00011198,2]
[353170995,1739623843572,-500.0,0.00011198,2]
[353170996,1739623843583,-500.0,0.00011198,2]
[353170997,1739623843593,-500.0,0.00011198,2]
[353170998,1739623843603,-500.0,0.00011198,2]
[353170999,1739623843613,-500.0,0.00011198,2]
[353171000,1739623843622,-500.0,0.00011198,2]
[353171001,1739623843631,-500.0,0.00011198,2]
[353171002,1739623843641,-500.0,0.00011198,2]
[353171003,1739623843651,-500.0,0.00011198,2]
[353171004,1739623843660,-500.0,0.00011198,2]
[353171005,1739623843670,-500.0,0.00011198,2]
[353171006,1739623843680,-612.74,0.00011198,2]
[353171007,1739623843689,-500.0,0.00011198,2]
[353171008,1739623843699,-500.0,0.00011198,2]
[353171009,1739623843709,-500.0,0.00011198,2]
[353171010,1739623843719,-500.0,0.00011198,2]
[353171011,1739623843728,-500.0,0.00011198,2]
[353171012,1739623843737,-284.93658428,0.00011198,2]
[353171013,1739623843747,-500.0,0.00011198,2]
[353171014,1739623843756,-500.0,0.00011198,2]
[353171015,1739623843766,-500.0,0.00011198,2]
[353171016,1739623843775,-500.0,0.00011198,2]
[353171017,1739623843785,-584.16,0.00011198,2]
[353171018,1739623843796,-500.0,0.00011198,2]
[353171019,1739623843806,-500.0,0.00011198,2]
[353171020,1739623843815,-500.0,0.00011198,2]
[353171021,1739623843825,-500.0,0.00011198,2]
[353171022,1739623843836,-500.0,0.00011198,2]
[353171023,1739623843846,-500.0,0.00011198,2]
[353171024,1739623843855,-500.0,0.00011198,2]
[353171025,1739623843865,-500.0,0.00011198,2]
[353171026,1739623843875,-500.0,0.00011198,2]
[353171027,1739623843885,-500.0,0.00011198,2]
[353171028,1739623843894,-500.0,0.00011198,2]
[353171029,1739623843903,-500.0,0.00011198,2]
[353171030,1739623843912,-612.66601784,0.00011198,2]
[353171031,1739623843922,-153.7,0.00011198,2]
[353171032,1739623843931,-500.0,0.00011198,2]
[353171033,1739623843939,-500.0,0.00011198,2]
[353171034,1739623843948,-500.0,0.00011198,2]
[353171035,1739623843958,-500.0,0.00011198,2]
[353171036,1739623843967,-500.0,0.00011198,2]
[353171037,1739623843976,-500.0,0.00011198,2]
[353171038,1739623843986,-500.0,0.00011198,2]
[353171039,1739623843996,-500.0,0.00011198,2]
[353171040,1739623844005,-640.99,0.00011198,2]
[353171041,1739623844014,-500.0,0.00011198,2]
[353171042,1739623844024,-500.0,0.00011198,2]
[353171043,1739623844033,-500.0,0.00011198,2]
[353171044,1739623844042,-500.0,0.00011198,2]
[353171045,1739623844051,-500.0,0.00011198,2]
[353171046,1739623844060,-500.0,0.00011198,2]
[353171047,1739623844070,-500.0,0.00011198,2]
[353171048,1739623844079,-500.0,0.00011198,2]
[353171049,1739623844090,-500.0,0.00011198,2]
[353171050,1739623844099,-501.57299846,0.00011198,2]
[353171051,1739623844108,-500.0,0.00011198,2]
[353171052,1739623844117,-500.0,0.00011198,2]
[353171053,1739623844126,-500.0,0.00011198,2]
[353171054,1739623844136,-500.0,0.00011198,2]
[353171055,1739623844145,-503.69334806,0.00011198,2]
[353171056,1739623844154,-574.31,0.00011198,2]
[353171057,1739623844163,-500.0,0.00011198,2]
[353171058,1739623844171,-582.69,0.00011198,2]
[353171059,1739623844181,-500.0,0.00011198,2]
[353171060,1739623844190,-500.0,0.00011198,2]
[353171061,1739623844198,-500.0,0.00011198,2]
[353171062,1739623844207,-500.0,0.00011198,2]
[353171063,1739623844216,-500.0,0.00011198,2]
[353171064,1739623844225,-500.0,0.00011198,2]
[353171065,1739623844234,-643.66,0.00011198,2]
[353171066,1739623844243,-500.0,0.00011198,2]
[353171067,1739623844253,-500.0,0.00011198,2]
[353171068,1739623844263,-500.0,0.00011198,2]
[353171069,1739623844271,-500.0,0.00011198,2]
[353171070,1739623844281,-500.0,0.00011198,2]
[353171071,1739623844291,-500.0,0.00011198,2]
[353171072,1739623844300,-500.0,0.00011198,2]
[353171073,1739623844498,-500.0,0.00011198,2]
[353171074,1739623844507,-401.60154288,0.00011198,2]
[353171075,1739623844516,-500.0,0.00011198,2]
[353171076,1739623844526,-500.0,0.00011198,2]
[353171077,1739623844535,-500.0,0.00011198,2]
[353171078,1739623844545,-500.0,0.00011198,2]
[353171079,1739623844554,-500.0,0.00011198,2]
[353171080,1739623844564,-500.0,0.00011198,2]
[353171081,1739623844573,-190.16,0.00011198,2]
[353171082,1739623844584,-500.58,0.00011198,2]
[353171083,1739623844594,-487.59874361,0.00011198,2]
[353171084,1739623844603,-500.83404944,0.00011199,2]
[353171085,1739623844612,-502.97306693,0.00011199,2]
[353171086,1739623844622,-509.52390184,0.00011199,2]
[353171087,1739623844631,-503.82322878,0.00011199,2]
[353171088,1739623844640,-242.63838063,0.00011199,2]
[353171089,1739623844650,-500.92975285,0.00011199,2]
[353171090,1739623844659,-500.38925308,0.00011199,2]
[353171091,1739623844669,-1000.0,0.000112,2]
[353171092,1739623844679,-1013.0,0.000112,2]
[353171093,1739623844689,-1006.0,0.000112,2]
[353171094,1739623844698,-400.0,0.000112,4]
[353171095,1739623844707,-154.53782294,0.00011263,2]
[353171096,1739623844716,-500.0,0.0001128,2]
[353171097,1739623844726,-276.08,0.0001128,2]
[353171098,1739623844735,-187.15,0.0001128,2]
[353171099,1739623844745,-500.0,0.0001128,2]
[353171100,1739623844754,-500.0,0.0001128,2]
[353171101,1739623844765,-275.74,0.0001128,2]
[353171102,1739623844774,-500.0,0.0001128,2]
[353171103,1739623844784,-500.0,0.0001128,2]
[353171104,1739623844800,-500.0,0.0001128,2]
[353171105,1739623844810,-500.0,0.0001128,2]
[353171106,1739623844819,-240.68,0.0001128,2]
[353171107,1739623844828,-500.0,0.0001128,2]
[353171108,1739623844842,-500.0,0.0001128,2]
[353171109,1739623844851,-536.36,0.0001128,2]
[353171110,1739623844860,-199.78,0.0001128,2]
[353171111,1739623844870,-500.0,0.0001128,2]
[353171113,1739623844879,-248.64,0.0001128,2]
[353171114,1739623844888,-500.0,0.0001128,2]
[353171115,1739623844897,-190.36,0.0001128,2]
[353171116,1739623844906,-214.52,0.0001128,2]
[353171117,1739623844915,-500.0,0.0001128,2]
[353171118,1739623844924,-514.09,0.0001128,2]
[353171119,1739623844933,-500.0,0.0001128,2]
[353171120,1739623844942,-500.0,0.0001128,2]
[353171121,1739623844952,-194.06,0.0001128,2]
[353171122,1739623844962,-346.36,0.0001128,2]
[353171123,1739623844971,-177.75,0.0001128,2]
[353171124,1739623844980,-500.0,0.0001128,2]
[353171125,1739623844989,-285.81,0.0001128,2]
[353171126,1739623844998,-624.28372163,0.0001128,2]
[353171127,1739623845007,-472.11,0.0001128,2]
[353171128,1739623845016,-559.05,0.0001128,2]
[353171129,1739623845025,-180.78,0.0001128,2]
[353171130,1739623845034,-500.0,0.0001128,2]
[353171131,1739623845043,-500.0,0.0001128,2]
[353171132,1739623845052,-500.0,0.0001128,2]
[353171133,1739623845061,-398.2,0.0001128,2]
[353171134,1739623845070,-500.0,0.0001128,2]
[353171135,1739623845079,-500.0,0.0001128,2]
[353171136,1739623845090,-500.0,0.0001128,2]
[353171137,1739623845099,-500.0,0.0001128,2]
[353171138,1739623845108,-500.0,0.0001128,2]
[353171139,1739623845117,-500.0,0.0001128,2]
[353171140,1739623845126,-634.21,0.0001128,2]
[353171141,1739623845136,-278.15,0.0001128,2]
[353171142,1739623845145,-500.0,0.0001128,2]
[353171143,1739623845154,-500.0,0.0001128,2]
[353171144,1739623845164,-465.49055521,0.0001128,2]
[353171145,1739623845173,-500.0,0.0001128,2]
[353171146,1739623845182,-224.62,0.0001128,2]
[353171147,1739623845191,-500.0,0.0001128,2]
[353171148,1739623845201,-152.929367,0.0001128,2]
[353171149,1739623845210,-500.0,0.0001128,2]
[353171150,1739623845219,-153.948683,0.0001128,2]
[353171151,1739623845228,-500.0,0.0001128,2]
[353171152,1739623845237,-500.0,0.0001128,2]
[353171153,1739623845246,-500.0,0.0001128,2]
[353171154,1739623845255,-156.366715,0.0001128,2]
[353171155,1739623845265,-622.24,0.0001128,2]
[353171156,1739623845274,-821.82,0.0001128,2]
[353171157,1739623845284,-500.0,0.0001128,2]
[353171158,1739623845293,-500.0,0.0001128,2]
[353171159,1739623845303,-642.51,0.0001128,2]
[353171160,1739623845312,-500.0,0.0001128,2]
[353171161,1739623845321,-500.0,0.0001128,2]
[353171162,1739623845331,-500.0,0.0001128,2]
[353171163,1739623845342,-731.13,0.0001128,2]
[353171164,1739623845351,-500.0,0.0001128,2]
[353171165,1739623845361,-500.0,0.0001128,2]
[353171166,1739623845371,-1688.09,0.0001128,2]
[353171167,1739623845380,-500.0,0.0001128,2]
[353171168,1739623845390,-873.51,0.0001128,2]
[353171169,1739623845399,-500.0,0.0001128,2]
[353171170,1739623845408,-511.39,0.0001128,2]
[353171171,1739623845417,-797.37,0.0001128,2]
[353171172,1739623845426,-933.06,0.0001128,2]
[353171173,1739623845436,-815.61,0.0001128,2]
[353171174,1739623845445,-909.91,0.0001128,2]
[353171175,1739623845455,-828.61,0.0001128,2]
[353171176,1739623845464,-746.71,0.0001128,2]
[353171177,1739623845474,-500.0,0.0001128,2]
[353171178,1739623845483,-500.0,0.0001128,2]
[353171179,1739623845492,-548.84,0.0001128,2]
[353171180,1739623845501,-1074.37,0.0001128,2]
[353171181,1739623845510,-1000.49,0.0001128,2]
[353171182,1739623845520,-500.0,0.0001128,2]
[353171183,1739623845529,-540.54,0.0001128,2]
[353171184,1739623845539,-500.0,0.0001128,2]
[353171185,1739623845548,-500.0,0.0001128,2]
[353171186,1739623845558,-500.0,0.0001128,2]
[353171187,1739623845567,-598.01,0.0001128,2]
[353171188,1739623845576,-1072.95,0.0001128,2]
[353171189,1739623845588,-500.0,0.0001128,2]
[353171190,1739623845597,-500.0,0.0001128,2]
[353171191,1739623845607,-500.0,0.0001128,2]
[353171192,1739623845617,-500.0,0.0001128,2]
[353171193,1739623845626,-1014.87,0.0001128,2]
[353171194,1739623845635,-753.65,0.0001128,2]
[353171195,1739623845644,-500.0,0.0001128,2]
[353171196,1739623845654,-777.18,0.0001128,2]
[353171197,1739623845664,-553.43,0.0001128,2]
[353171198,1739623845674,-500.0,0.0001128,2]
[353171199,1739623845684,-500.0,0.0001128,2]
[353171200,1739623845693,-500.0,0.0001128,2]
[353171202,1739623845703,-500.0,0.0001128,2]
[353171203,1739623845713,-645.65,0.0001128,2]
[353171204,1739623845723,-542.23,0.0001128,2]
[353171205,1739623845732,-656.58,0.0001128,2]
[353171206,1739623845742,-500.0,0.0001128,2]
[353171207,1739623845752,-508.34872424,0.0001128,2]
[353171208,1739623845762,-500.0,0.0001128,2]
[353171209,1739623845771,-500.0,0.0001128,2]
[353171210,1739623845781,-158.32754656,0.0001128,2]
[353171211,1739623845791,-500.0,0.0001128,2]
[353171212,1739623845804,-509.49,0.0001128,2]
[353171214,1739623845813,-500.0,0.0001128,2]